[Event "HUN-chT Youth-Children 2018"]
[Site "Zalakaros"]
[Date "2018.07.28"]
[Round "6"]
[White "Toth, Csongor"]
[Black "Szabo, Akos"]
[Result "1/2-1/2"]
[ECO "C44"]
[WhiteElo "1326"]
[BlackElo "1322"]
[Annotator "NA"]
[PlyCount "79"]
[EventDate "2018.07.26"]
[EventType "team-tourn"]
[EventCountry "HUN"]
[SourceTitle "playchess.com"]
[Source "ChessBase"]
[SourceQuality "1"]
[TimeControl "5400+30"]

1. e4 {[%emt 0:00:00]} e5 {[%emt 0:00:13]} 2. Nf3 {[%emt 0:00:00]} Nc6 {[%emt 0:00:11]} 3. d4 {[%emt 0:00:00]} exd4 {[%emt 0:00:08]} 4. Nxd4 {[%emt 0:00:12]} Nf6 {[%emt 0:00:14]} 5. Nc3 {[%emt 0:00:50]} Bb4 {[%emt 0:00:14]} 6. Bg5 {[%emt 0:02:18]} h6 {[%emt 0:01:11]} 7. Nxc6 {[%emt 0:01:11]} Bxc3+ {[%emt 0:00:53]} 8. bxc3 {[%emt 0:00:18]} bxc6 {[%emt 0:00:27]} 9. Bxf6 {[%emt 0:03:28]} Qxf6 {[%emt 0:00:19]} 10. Qd4 {[%emt 0:03:49]} Qg5 {[%emt 0:11:09]} 11. g3 {[%emt 0:12:04]} O-O {[%emt 0:01:34]} 12. Bg2 {[%emt 0:01:08]} Qb5 {[%emt 0:00:45]} 13. c4 {[%emt 0:02:12]} Qb6 {[%emt 0:01:56]} 14. c3 {[%emt 0:07:44]} d6 {[%emt 0:07:49]} 15. O-O {[%emt 0:02:47]} c5 {[%emt 0:06:54]} 16. Qd3 {[%emt 0:04:33]} Qa6 {[%emt 0:03:13]} 17. Rfb1 {[%emt 0:09:59]} Be6 {[%emt 0:01:36]} 18. Bf1 {[%emt 0:00:49]} Rab8 {[%emt 0:00:27]} 19. Rb5 {[%emt 0:15:19]} Rfd8 {[%emt 0:07:01]} 20. Qb1 {[%emt 0:08:56]} Rb6 {[%emt 0:03:36]} 21. Rxb6 {[%emt 0:05:45]} cxb6 {[%emt 0:01:35]} 22. Qb5 {[%emt 0:02:28]} Qxb5 {[%emt 0:04:26]} 23. cxb5 {[%emt 0:00:08]} d5 {[%emt 0:08:30]} 24. exd5 {[%emt 0:00:27]} Rxd5 {[%emt 0:03:06]} 25. c4 {[%emt 0:00:33]} Rd4 {[%emt 0:01:10]} 26. Rc1 {[%emt 0:00:17]} Rd2 {[%emt 0:01:17]} 27. a3 {[%emt 0:00:11]} Rd4 {[%emt 0:00:53]} 28. Kg2 {[%emt 0:04:24]} g5 {[%emt 0:01:56]} 29. Kf3 {[%emt 0:03:23]} Kg7 {[%emt 0:00:33]} 30. h3 {[%emt 0:06:00]} Kg6 {[%emt 0:00:46]} 31. g4 {[%emt 0:01:36]} h5 {[%emt 0:01:09]} 32. gxh5+ {[%emt 0:00:22]} Kxh5 {[%emt 0:00:30]} 33. Kg3 {[%emt 0:00:15]} f5 {[%emt 0:01:09]} 34. Be2+ {[%emt 0:01:40]} g4 {[%emt 0:01:02]} 35. hxg4+ {[%emt 0:00:26]} fxg4 {[%emt 0:00:17]} 36. f3 {[%emt 0:00:45]} gxf3 {[%emt 0:00:51]} 37. Bxf3+ {[%emt 0:00:04]} Bg4 {[%emt 0:00:52]} 38. Bxg4+ {[%emt 0:00:58]} Rxg4+ {[%emt 0:00:10]} 39. Kf3 {[%emt 0:00:07]} Kg5 {[%emt 0:00:52]} 40. Rc3 {[%emt 0:01:06]} 1/2-1/2

[Event "HUN-chT Youth-Children 2018"]
[Site "Zalakaros"]
[Date "2018.07.28"]
[Round "6"]
[White "Petyko, Martin"]
[Black "Markus, Molli Amina"]
[Result "0-1"]
[ECO "D02"]
[WhiteElo "1166"]
[BlackElo "1566"]
[Annotator "NA"]
[PlyCount "68"]
[EventDate "2018.07.26"]
[EventType "team-tourn"]
[EventCountry "HUN"]
[SourceTitle "playchess.com"]
[Source "ChessBase"]
[SourceQuality "1"]
[TimeControl "5400+30"]

1. d4 {[%emt 0:00:00]} d5 {[%emt 0:00:29]} 2. Nf3 Nf6 {[%emt 0:00:42]} 3. g3 {[%emt 0:00:05]} e6 {[%emt 0:01:15]} 4. Bg2 {[%emt 0:00:20]} c5 {[%emt 0:00:30]} 5. c4 {[%emt 0:00:13]} Nc6 {[%emt 0:01:09]} 6. Nc3 {[%emt 0:02:44]} dxc4 {[%emt 0:03:40]} 7. Ne5 {[%emt 0:02:37]} Nxe5 {[%emt 0:04:13]} 8. dxe5 {[%emt 0:00:14]} Qxd1+ {[%emt 0:02:08]} 9. Nxd1 {[%emt 0:00:16]} Nd7 {[%emt 0:02:57]} 10. f4 {[%emt 0:01:28]} Rb8 {[%emt 0:01:23]} 11. O-O {[%emt 0:01:15]} b5 {[%emt 0:02:00]} 12. Bc6 {[%emt 0:02:25]} Rb6 {[%emt 0:01:23]} 13. Be4 {[%emt 0:01:01]} Bb7 {[%emt 0:01:28]} 14. Bxb7 {[%emt 0:01:11]} Rxb7 {[%emt 0:00:09]} 15. a4 {[%emt 0:00:53]} a6 {[%emt 0:14:41]} 16. axb5 {[%emt 0:02:19]} axb5 {[%emt 0:00:15]} 17. Ra8+ {[%emt 0:00:30]} Rb8 {[%emt 0:00:09]} 18. Rxb8+ {[%emt 0:00:20]} Nxb8 {[%emt 0:00:07]} 19. Nc3 {[%emt 0:00:25]} b4 {[%emt 0:01:58]} 20. Ne4 {[%emt 0:01:17]} Kd7 {[%emt 0:09:17]} 21. Rd1+ {[%emt 0:02:02]} Kc7 {[%emt 0:02:43]} 22. Nd6 {[%emt 0:01:25]} Bxd6 {[%emt 0:02:19]} 23. Rxd6 {[%emt 0:01:49]} Rd8 {[%emt 0:00:35]} 24. Rxd8 {[%emt 0:00:48]} Kxd8 {[%emt 0:00:06]} 25. Be3 {[%emt 0:00:35]} Na6 {[%emt 0:00:09]} 26. Kf2 {[%emt 0:00:37]} Kc7 {[%emt 0:00:14]} 27. Kf3 {[%emt 0:00:23]} Kc6 {[%emt 0:00:26]} 28. Ke4 {[%emt 0:00:08]} Nc7 {[%emt 0:01:37]} 29. f5 {[%emt 0:00:19]} exf5+ {[%emt 0:01:34]} 30. Kxf5 {[%emt 0:00:16]} Kd5 {[%emt 0:00:40]} 31. Bf2 {[%emt 0:01:10]} Ne6 {[%emt 0:00:24]} 32. e4+ {[%emt 0:01:11]} Kc6 {[%emt 0:00:05]} 33. h4 {[%emt 0:00:18]} c3 {[%emt 0:00:50]} 34. bxc3 {[%emt 0:00:58]} b3 {[%emt 0:00:20]} 0-1

[Event "HUN-chT Youth-Children 2018"]
[Site "Zalakaros"]
[Date "2018.07.29"]
[Round "7"]
[White "Krstulovic, Alex"]
[Black "Marosi, Levente"]
[Result "1-0"]
[ECO "D38"]
[WhiteElo "2289"]
[BlackElo "2337"]
[Annotator "NA"]
[PlyCount "69"]
[EventDate "2018.07.26"]
[EventType "team-tourn"]
[EventCountry "HUN"]
[SourceTitle "playchess.com"]
[Source "ChessBase"]
[SourceQuality "1"]
[TimeControl "5400+30"]

1. d4 {[%emt 0:00:00]} Nf6 {[%emt 0:00:07]} 2. c4 {[%emt 0:00:00]} e6 {[%emt 0:00:10]} 3. Nf3 {[%emt 0:00:00]} d5 {[%emt 0:00:11]} 4. Nc3 {[%emt 0:00:00]} Bb4 {[%emt 0:00:25]} 5. Bg5 {[%emt 0:00:26]} h6 {[%emt 0:00:19]} 6. Bxf6 {[%emt 0:00:11]} Qxf6 {[%emt 0:00:03]} 7. e3 {[%emt 0:00:15]} O-O {[%emt 0:00:38]} 8. Rc1 {[%emt 0:00:07]} dxc4 {[%emt 0:03:48]} 9. Bxc4 {[%emt 0:00:14]} c5 {[%emt 0:00:08]} 10. O-O {[%emt 0:00:17]} cxd4 {[%emt 0:00:15]} 11. Ne4 {[%emt 0:00:07]} Qf5 {[%emt 0:08:54]} 12. Ng3 {[%emt 0:21:42]} Qf6 $11 {[%emt 0:01:48]} 13. Nh5 {[%emt 0:13:40]} Qg6 {[%emt 0:16:40]} 14. Ne5 {[%emt 0:03:06]} Qe4 {[%emt 0:16:35]} 15. exd4 {[%emt 0:01:12]} Nc6 {[%emt 0:00:54]} 16. Bd3 {[%emt 0:08:22]} Qh4 {[%emt 0:00:23]} 17. g3 {[%emt 0:03:11]} Qe7 {[%emt 0:03:06]} 18. Rxc6 {[%emt 0:21:35]} bxc6 {[%emt 0:01:56]} 19. Nxc6 {[%emt 0:00:13]} Qd6 {[%emt 0:00:29]} 20. Qg4 {[%emt 0:00:59]} g5 {[%emt 0:00:45]} 21. Nxb4 {[%emt 0:00:08]} f5 {[%emt 0:04:36]} 22. Qf3 {[%emt 0:00:20]} Rb8 {[%emt 0:04:36]} 23. Nc2 {[%emt 0:01:40]} Rxb2 {[%emt 0:00:32]} 24. Qe3 {[%emt 0:07:30]} Bb7 {[%emt 0:02:27]} 25. Re1 {[%emt 0:02:20]} Rc8 {[%emt 0:09:16]} 26. Na3 {[%emt 0:03:54]} Kf8 {[%emt 0:07:12]} 27. Bc4 {[%emt 0:02:59]} Rb6 {[%emt 0:08:43]} 28. f3 {[%emt 0:04:55]} Rd8 {[%emt 0:04:18]} 29. Nb5 {[%emt 0:01:08]} Rxb5 {[%emt 0:04:33]} 30. Bxb5 {[%emt 0:00:08]} Kf7 {[%emt 0:00:16]} 31. Bc4 {[%emt 0:03:51]} Qxd4 {[%emt 0:01:16]} 32. Bxe6+ {[%emt 0:00:35]} Kg6 {[%emt 0:00:02]} 33. Qxd4 {[%emt 0:00:07]} Rxd4 {[%emt 0:00:05]} 34. g4 {[%emt 0:00:41]} f4 {[%emt 0:01:04]} 35. Bg8 {[%emt 0:00:36]} 1-0

[Event "HUN-chT Youth-Children 2018"]
[Site "Zalakaros"]
[Date "2018.07.29"]
[Round "7"]
[White "Kokeny, Norbert Adrian"]
[Black "Vanczak, Tamas"]
[Result "1/2-1/2"]
[ECO "A30"]
[WhiteElo "2249"]
[BlackElo "2339"]
[Annotator "NA"]
[PlyCount "102"]
[EventDate "2018.07.26"]
[EventType "team-tourn"]
[EventCountry "HUN"]
[SourceTitle "playchess.com"]
[Source "ChessBase"]
[SourceQuality "1"]
[TimeControl "5400+30"]

1. Nf3 {[%emt 0:00:23]} c5 {[%emt 0:00:27]} 2. c4 {[%emt 0:00:16]} Nf6 {[%emt 0:02:16]} 3. g3 {[%emt 0:00:05]} b6 {[%emt 0:00:23]} 4. Bg2 {[%emt 0:00:28]} Bb7 {[%emt 0:00:06]} 5. O-O {[%emt 0:00:30]} e6 {[%emt 0:00:15]} 6. Nc3 {[%emt 0:00:36]} Be7 {[%emt 0:00:40]} 7. b3 {[%emt 0:04:09]} O-O {[%emt 0:01:27]} 8. Bb2 {[%emt 0:00:05]} d6 {[%emt 0:01:19]} 9. e3 {[%emt 0:01:09]} Nbd7 {[%emt 0:08:47]} 10. Qe2 {[%emt 0:01:05] LiveBook: 124 Games} Re8 {[%emt 0:01:05]} 11. Rfd1 {[%emt 0:01:00]} a6 {[%emt 0:00:50]} 12. d4 {[%emt 0:02:06] A30: Symmetrical English: Double Fianchetto and Hedgehog} cxd4 {[%emt 0:01:16]} 13. Nxd4 {[%emt 0:00:25]} Bxg2 {[%emt 0:00:20]} 14. Kxg2 {[%emt 0:00:06]} Qc7 {[%emt 0:00:19]} 15. Rac1 {[%emt 0:00:47]} Rac8 {[%emt 0:03:27] [#]} 16. Nc2 $146 {[%emt 0:11:34]} ({Predecessor:} 16. f4 Nb8 17. Qf3 Nc6 18. Nde2 Qb7 19. g4 Nxg4 20. Ne4 Nd8 21. Rxd6 f5 22. Rxd8 Qxe4 23. Qxe4 fxe4 24. Rxe8+ Rxe8 25. Ng3 Nxe3+ 26. Kh3 Rd8 27. Nxe4 Rd3 28. Ng3 Nd1 29. Rc2 h5 {0-1 (29) Horvath,J (2535)-Leko,P (2600) Budapest 1997}) 16... Bf8 {[%emt 0:04:38]} 17. f4 {[%emt 0:05:08]} Nc5 {[%emt 0:04:41]} 18. Qf3 $11 {[%emt 0:01:35]} Qb8 19. Nb4 {[%emt 0:05:08]} b5 {[%emt 0:12:28]} 20. cxb5 {[%emt 0:03:44]} axb5 {[%emt 0:00:18]} 21. e4 Qa8 22. e5 {[%emt 0:21:50]} dxe5 {[%emt 0:06:44]} 23. fxe5 {[%emt 0:01:17]} Ng4 {[%emt 0:02:52]} 24. Re1 {[%emt 0:05:50]} Nxb3 {[%emt 0:07:02]} 25. axb3 {[%emt 0:02:58]} Bxb4 {[%emt 0:00:23]} 26. Qxa8 {[%emt 0:03:23]} Rxa8 {[%emt 0:00:12]} 27. Re4 {[%emt 0:00:17]} Bxc3 {[%emt 0:00:42]} 28. Rxc3 {[%emt 0:00:25]} f5 {[%emt 0:02:47]} 29. exf6 {[%emt 0:00:39]} Nxf6 {[%emt 0:00:12]} 30. Re2 {[%emt 0:00:10]} Ra2 {[%emt 0:10:32]} 31. Rc7 {[%emt 0:01:21]} Rd8 {[%emt 0:04:01]} 32. Rxg7+ {[%emt 0:00:15]} Kxg7 {[%emt 0:01:24]} 33. Bxf6+ {[%emt 0:00:07]} Kxf6 {[%emt 0:00:05]} 34. Rxa2 {[%emt 0:00:03]} Rd3 {[%emt 0:00:22]} 35. Ra7 {[%emt 0:00:52]} h6 {[%emt 0:11:35]} 36. Rh7 {[%emt 0:01:28]} Kg6 {[%emt 0:01:00]} 37. Re7 {[%emt 0:00:42]} Kf5 {[%emt 0:00:56]} 38. Rh7 {[%emt 0:02:36]} Rxb3 {[%emt 0:00:46]} 39. Rxh6 {[%emt 0:00:06]} e5 {[%emt 0:00:41]} 40. h4 {[%emt 0:00:26]} e4 {[%emt 0:02:22]} 41. Rh5+ {[%emt 0:00:00]} Kf6 {[%emt 0:01:37]} 42. g4 Rb2+ {[%emt 0:05:43]} 43. Kg3 {[%emt 0:00:59]} e3 {[%emt 0:00:31]} 44. Rf5+ {[%emt 0:00:06]} Ke6 {[%emt 0:01:11]} 45. h5 {[%emt 0:00:57]} e2 {[%emt 0:01:23]} 46. Kf2 {[%emt 0:00:06]} Rb4 {[%emt 0:00:16]} 47. Rg5 {[%emt 0:00:48]} Re4 {[%emt 0:00:23]} 48. Ke1 {[%emt 0:00:05]} Kf6 {[%emt 0:00:34]} 49. Rg6+ {[%emt 0:00:08]} Kf7 {[%emt 0:00:13]} 50. g5 {[%emt 0:00:09]} Re5 {[%emt 0:00:24]} 51. Rf6+ {[%emt 0:00:45]} Kg8 {[%emt 0:00:20]} 1/2-1/2

[Event "HUN-chT Youth-Children 2018"]
[Site "Zalakaros"]
[Date "2018.07.29"]
[Round "7"]
[White "Ugroczky, Peter"]
[Black "Dibusz, Domonkos"]
[Result "1/2-1/2"]
[ECO "C77"]
[WhiteElo "2247"]
[BlackElo "2076"]
[Annotator "NA"]
[PlyCount "57"]
[EventDate "2018.07.26"]
[EventType "team-tourn"]
[EventCountry "HUN"]
[SourceTitle "playchess.com"]
[Source "ChessBase"]
[SourceQuality "1"]
[TimeControl "5400+30"]

1. e4 {[%emt 0:00:00]} e5 {[%emt 0:00:21]} 2. Nf3 {[%emt 0:00:00]} Nc6 {[%emt 0:00:17]} 3. Bb5 {[%emt 0:00:19]} a6 {[%emt 0:00:07]} 4. Ba4 {[%emt 0:00:04]} Nf6 {[%emt 0:00:17]} 5. d4 {[%emt 0:00:10]} exd4 {[%emt 0:00:10]} 6. O-O {[%emt 0:00:09]} Be7 {[%emt 0:02:14]} 7. Re1 {[%emt 0:00:08]} b5 {[%emt 0:00:06]} 8. Bb3 {[%emt 0:00:20]} d6 {[%emt 0:01:02]} 9. Bd5 {[%emt 0:00:05]} Nxd5 {[%emt 0:00:06]} 10. exd5 {[%emt 0:00:05]} Ne5 {[%emt 0:00:33]} 11. Nxd4 {[%emt 0:00:07]} O-O {[%emt 0:02:11]} 12. a4 {[%emt 0:00:20]} Bg4 {[%emt 0:04:14]} 13. Qd2 {[%emt 0:02:02]} Bd7 {[%emt 0:00:05]} 14. Nc3 {[%emt 0:01:03]} b4 {[%emt 0:01:54]} 15. Ne4 {[%emt 0:01:39]} f5 {[%emt 0:02:08]} 16. Ng5 {[%emt 0:02:07]} Bxg5 {[%emt 0:00:06]} 17. Qxg5 {[%emt 0:00:05]} Qxg5 {[%emt 0:00:48]} 18. Bxg5 {[%emt 0:00:06]} f4 {[%emt 0:09:10]} 19. Re4 {[%emt 0:09:07]} Ng6 {[%emt 0:06:23]} 20. g3 {[%emt 0:02:35]} Rae8 {[%emt 0:06:16]} 21. Ne6 {[%emt 0:08:19]} Rf5 {[%emt 0:10:44]} 22. Bxf4 {[%emt 0:02:21]} Nxf4 {[%emt 0:04:47]} 23. gxf4 {[%emt 0:00:38]} Rxd5 {[%emt 0:06:38]} 24. Nxc7 {[%emt 0:01:38]} Rxe4 {[%emt 0:04:14]} 25. Nxd5 {[%emt 0:00:06]} Rd4 {[%emt 0:02:33]} 26. Nc7 {[%emt 0:03:06]} a5 {[%emt 0:03:24]} 27. Nb5 {[%emt 0:03:18]} Rd5 {[%emt 0:05:30]} 28. c4 {[%emt 0:04:22]} bxc3 {[%emt 0:03:10]} 29. bxc3 {[%emt 0:03:35]} 1/2-1/2

[Event "HUN-chT Youth-Children 2018"]
[Site "Zalakaros"]
[Date "2018.07.29"]
[Round "7"]
[White "Pribelszky, Bence"]
[Black "Lengyel, Andrea"]
[Result "1-0"]
[ECO "A00"]
[WhiteElo "2245"]
[BlackElo "1854"]
[Annotator "NA"]
[PlyCount "49"]
[EventDate "2018.07.26"]
[EventType "team-tourn"]
[EventCountry "HUN"]
[SourceTitle "playchess.com"]
[Source "ChessBase"]
[SourceQuality "1"]
[TimeControl "5400+30"]

1. Nc3 {[%emt 0:01:05]} d5 {[%emt 0:04:11]} 2. e4 {[%emt 0:00:08]} d4 {[%emt 0:03:19]} 3. Nce2 {[%emt 0:00:10]} e5 {[%emt 0:02:38]} 4. Ng3 {[%emt 0:01:29]} Be6 {[%emt 0:05:55]} 5. Bb5+ {[%emt 0:04:37]} c6 {[%emt 0:02:01] LiveBook: 7 Partien} 6. Ba4 {[%emt 0:00:19]} Bd6 {[%emt 0:04:39]} 7. Bb3 {[%emt 0:11:09]} Bxb3 {[%emt 0:02:03]} 8. axb3 $15 {[%emt 0:01:26]} g6 9. Nh3 Ne7 {[%emt 0:16:58]} 10. O-O {[%emt 0:12:23]} O-O {[%emt 0:01:55]} 11. d3 Qd7 12. Bh6 {[%emt 0:09:26]} Re8 {[%emt 0:10:40]} 13. f4 {[%emt 0:02:13]} exf4 {[%emt 0:03:57]} 14. Nxf4 {[%emt 0:01:30]} Be5 {[%emt 0:05:23]} 15. Qf3 {[%emt 0:08:04]} Nc8 {[%emt 0:03:07]} 16. c4 {[%emt 0:27:15]} Na6 {[%emt 0:05:16]} 17. Ra5 {[%emt 0:03:38]} c5 {[%emt 0:07:36]} 18. b4 {[%emt 0:02:44]} Nxb4 {[%emt 0:06:48]} 19. Rxc5 {[%emt 0:03:13]} Nc6 20. Nxg6 {[%emt 0:05:37]} Re6 {[%emt 0:11:21]} 21. Nxe5 {[%emt 0:01:53]} Nxe5 {[%emt 0:00:17]} 22. Rxe5 {[%emt 0:00:36]} Rxh6 {[%emt 0:00:53]} 23. Nh5 {[%emt 0:01:19]} Kh8 {[%emt 0:02:23]} 24. Nf6 {[%emt 0:00:52]} Rxf6 {[%emt 0:00:24]} 25. Qxf6+ {[%emt 0:00:09]} 1-0

[Event "HUN-chT Youth-Children 2018"]
[Site "Zalakaros"]
[Date "2018.07.29"]
[Round "7"]
[White "Juhasz, Agoston"]
[Black "Losonczi, Marcell"]
[Result "0-1"]
[ECO "C48"]
[WhiteElo "2244"]
[BlackElo "2149"]
[Annotator "NA"]
[PlyCount "40"]
[EventDate "2018.07.26"]
[EventType "team-tourn"]
[EventCountry "HUN"]
[SourceTitle "playchess.com"]
[Source "ChessBase"]
[SourceQuality "1"]
[TimeControl "5400+30"]

1. e4 {[%emt 0:00:00]} e5 {[%emt 0:00:04]} 2. Nf3 {[%emt 0:00:00]} Nc6 {[%emt 0:00:05]} 3. Nc3 {[%emt 0:00:00]} Nf6 {[%emt 0:00:04]} 4. Bb5 {[%emt 0:00:01]} Bd6 {[%emt 0:00:04]} 5. d3 {[%emt 0:00:24]} a6 {[%emt 0:00:57]} 6. Ba4 {[%emt 0:00:51]} O-O {[%emt 0:01:37]} 7. a3 {[%emt 0:02:38]} h6 {[%emt 0:03:20]} 8. g4 {[%emt 0:03:40]} b5 {[%emt 0:07:40]} 9. Bb3 {[%emt 0:00:20]} Nd4 {[%emt 0:00:55]} 10. Ba2 {[%emt 0:04:30]} (10. Rg1 $14) 10... b4 {[%emt 0:06:43]} 11. axb4 {[%emt 0:02:30]} Bxb4 {[%emt 0:00:17]} 12. g5 {[%emt 0:02:07]} (12. O-O $14) 12... d5 $15 {[%emt 0:07:23]} 13. Nxe5 {[%emt 0:41:27]} Qe7 {[%emt 0:19:32]} 14. gxf6 {[%emt 0:12:14]} Qxe5 {[%emt 0:00:10]} 15. fxg7 {[%emt 0:03:24]} Rd8 {[%emt 0:02:09]} 16. Be3 {[%emt 0:06:33]} dxe4 {[%emt 0:02:04]} 17. dxe4 {[%emt 0:06:18]} Qxe4 {[%emt 0:02:53]} 18. Bxf7+ {[%emt 0:08:07]} Kxf7 {[%emt 0:00:14]} 19. Qh5+ {[%emt 0:00:34]} Kg8 {[%emt 0:01:44]} 20. Rg1 {[%emt 0:02:37]} Qf3 {[%emt 0:04:45]} 0-1

[Event "HUN-chT Youth-Children 2018"]
[Site "Zalakaros"]
[Date "2018.07.29"]
[Round "7"]
[White "Borhy, Marcell"]
[Black "Bohus, Adam"]
[Result "0-1"]
[ECO "E62"]
[WhiteElo "2234"]
[BlackElo "2231"]
[Annotator "NA"]
[PlyCount "68"]
[EventDate "2018.07.26"]
[EventType "team-tourn"]
[EventCountry "HUN"]
[SourceTitle "playchess.com"]
[Source "ChessBase"]
[SourceQuality "1"]
[TimeControl "5400+30"]

1. d4 {[%emt 0:00:00]} Nf6 {[%emt 0:00:11]} 2. c4 {[%emt 0:00:00]} g6 {[%emt 0:00:19]} 3. Nf3 {[%emt 0:00:06]} Bg7 {[%emt 0:00:09]} 4. g3 {[%emt 0:00:17]} O-O {[%emt 0:00:18]} 5. Bg2 {[%emt 0:00:18]} d6 {[%emt 0:00:21]} 6. O-O {[%emt 0:00:18]} Nc6 {[%emt 0:00:19]} 7. Nc3 {[%emt 0:01:00]} Bg4 {[%emt 0:00:21]} 8. h3 {[%emt 0:03:59]} Bxf3 {[%emt 0:00:13]} 9. Bxf3 {[%emt 0:00:02]} Nd7 {[%emt 0:00:20]} 10. Bxc6 {[%emt 0:05:50]} bxc6 {[%emt 0:00:19]} 11. Be3 {[%emt 0:03:49]} e5 {[%emt 0:04:42]} 12. Qd2 {[%emt 0:00:53]} Re8 {[%emt 0:18:52]} 13. Rad1 $11 {[%emt 0:05:10]} h5 {[%emt 0:22:20]} 14. dxe5 {[%emt 0:18:39]} Nxe5 {[%emt 0:01:01]} 15. b3 {[%emt 0:00:30]} h4 {[%emt 0:06:47]} 16. g4 {[%emt 0:01:42]} Qd7 {[%emt 0:04:13]} 17. Bd4 {[%emt 0:02:32]} Qe6 {[%emt 0:16:27]} 18. Qg5 {[%emt 0:09:48]} Bf6 {[%emt 0:01:35]} 19. Qf4 {[%emt 0:02:37]} Bg7 {[%emt 0:10:07]} 20. Qg5 {[%emt 0:03:54]} Bf6 {[%emt 0:03:58]} 21. Qe3 {[%emt 0:06:40]} Bg7 {[%emt 0:01:28]} 22. f4 {[%emt 0:04:33]} Nd7 {[%emt 0:00:41]} 23. Qxe6 {[%emt 0:06:39]} Rxe6 {[%emt 0:00:01]} 24. Bxg7 {[%emt 0:00:16]} Kxg7 {[%emt 0:00:02]} 25. Rf3 {[%emt 0:01:08]} Rae8 {[%emt 0:01:10]} 26. Kf2 {[%emt 0:00:08]} Nc5 {[%emt 0:00:36]} 27. Rd4 {[%emt 0:01:35]} f5 {[%emt 0:02:12]} 28. g5 {[%emt 0:02:44]} a5 {[%emt 0:02:26]} 29. Rd1 {[%emt 0:04:05]} Kf7 {[%emt 0:00:45]} 30. Rc1 {[%emt 0:03:04]} R8e7 {[%emt 0:00:58]} 31. Rc2 {[%emt 0:00:58]} Ke8 {[%emt 0:00:18]} 32. Rb2 {[%emt 0:01:15]} Kd7 {[%emt 0:01:24]} 33. Ke1 {[%emt 0:01:02]} Re3 {[%emt 0:00:51]} 34. Kf2 {[%emt 0:00:10]} Rxc3 {[%emt 0:00:10]} 0-1

[Event "HUN-chT Youth-Children 2018"]
[Site "Zalakaros"]
[Date "2018.07.29"]
[Round "7"]
[White "Geher, Koppany"]
[Black "Forgacs, Attila Jr"]
[Result "1-0"]
[ECO "C88"]
[WhiteElo "2207"]
[BlackElo "1911"]
[Annotator "NA"]
[PlyCount "113"]
[EventDate "2018.07.26"]
[EventType "team-tourn"]
[EventCountry "HUN"]
[SourceTitle "playchess.com"]
[Source "ChessBase"]
[SourceQuality "1"]
[TimeControl "5400+30"]

1. e4 {[%emt 0:00:00]} e5 {[%emt 0:00:06]} 2. Nf3 {[%emt 0:00:00]} Nc6 {[%emt 0:00:06]} 3. Bb5 {[%emt 0:00:00]} a6 {[%emt 0:00:06]} 4. Ba4 {[%emt 0:00:00]} Nf6 {[%emt 0:00:14]} 5. O-O {[%emt 0:00:00]} Be7 {[%emt 0:00:05]} 6. Re1 {[%emt 0:00:21]} b5 {[%emt 0:00:09]} 7. Bb3 {[%emt 0:00:06]} O-O {[%emt 0:00:16]} 8. a4 {[%emt 0:00:05]} b4 {[%emt 0:00:07]} 9. d4 {[%emt 0:00:10]} d6 {[%emt 0:05:07]} 10. dxe5 {[%emt 0:01:05]} Nxe5 {[%emt 0:01:51]} 11. Nxe5 {[%emt 0:01:11]} dxe5 {[%emt 0:00:08]} 12. Qe2 {[%emt 0:00:32]} Bb7 {[%emt 0:06:41]} 13. f3 {[%emt 0:07:11]} Bc5+ {[%emt 0:05:06]} 14. Be3 {[%emt 0:00:08]} Qe7 {[%emt 0:02:49]} 15. Nd2 {[%emt 0:03:09]} Rad8 {[%emt 0:04:50]} 16. Nc4 $16 {[%emt 0:02:03]} Nd7 {[%emt 0:11:29]} 17. Na5 {[%emt 0:22:32]} Bxe3+ {[%emt 0:04:14]} 18. Qxe3 {[%emt 0:00:02]} Ba8 {[%emt 0:01:06]} 19. Bc4 {[%emt 0:02:22]} Qc5 {[%emt 0:02:51]} 20. Qxc5 {[%emt 0:00:25]} Nxc5 {[%emt 0:00:06]} 21. Kf2 {[%emt 0:07:25]} Rd2+ {[%emt 0:03:02]} 22. Re2 {[%emt 0:00:04]} Rfd8 {[%emt 0:01:17]} 23. Ke3 {[%emt 0:06:36]} Rd1 {[%emt 0:05:52]} 24. Rxd1 {[%emt 0:00:12]} Rxd1 {[%emt 0:00:08]} 25. b3 {[%emt 0:03:26]} Kf8 {[%emt 0:01:41]} 26. Rd2 {[%emt 0:00:27]} Rxd2 27. Kxd2 {[%emt 0:00:01]} Ke7 {[%emt 0:01:03]} 28. c3 {[%emt 0:00:17]} bxc3+ {[%emt 0:01:49]} 29. Kxc3 {[%emt 0:00:07]} f6 {[%emt 0:01:30]} 30. Kb4 {[%emt 0:00:09]} Kd6 {[%emt 0:04:21]} 31. Bg8 {[%emt 0:01:15]} Ne6 {[%emt 0:15:00]} 32. Nc4+ {[%emt 0:05:02]} Kd7 {[%emt 0:01:43]} 33. Bxe6+ {[%emt 0:03:05]} Kxe6 {[%emt 0:00:13]} 34. Nb2 {[%emt 0:00:53]} Kd6 {[%emt 0:03:12]} 35. Nd3 {[%emt 0:00:31]} Bb7 {[%emt 0:01:26]} 36. Ka5 {[%emt 0:00:28]} g6 {[%emt 0:02:57]} 37. b4 {[%emt 0:01:45]} f5 {[%emt 0:04:39]} 38. Nc5 {[%emt 0:00:13]} Bc8 {[%emt 0:00:38]} 39. Nxa6 {[%emt 0:00:48]} fxe4 {[%emt 0:02:27]} 40. fxe4 {[%emt 0:00:09]} Bg4 {[%emt 0:03:43]} 41. Nc5 {[%emt 0:04:21]} Be2 {[%emt 0:01:25]} 42. Nb7+ {[%emt 0:01:09]} Kc6 {[%emt 0:01:40]} 43. Nd8+ {[%emt 0:00:46]} Kd7 {[%emt 0:00:21]} 44. Nf7 {[%emt 0:00:14]} Ke6 {[%emt 0:00:35]} 45. Ng5+ {[%emt 0:00:08]} Kd6 {[%emt 0:00:36]} 46. Nxh7 {[%emt 0:03:02]} c5 {[%emt 0:00:57]} 47. bxc5+ {[%emt 0:04:56]} Kxc5 {[%emt 0:00:13]} 48. Nf6 {[%emt 0:02:33]} Bd3 {[%emt 0:00:48]} 49. h4 {[%emt 0:00:23]} Kd4 {[%emt 0:02:11]} 50. g4 {[%emt 0:00:10]} Bxe4 {[%emt 0:01:14]} 51. Nxe4 {[%emt 0:00:06]} Kxe4 {[%emt 0:00:05]} 52. h5 {[%emt 0:00:03]} gxh5 {[%emt 0:00:08]} 53. gxh5 {[%emt 0:00:01]} Kf5 {[%emt 0:00:18]} 54. h6 {[%emt 0:00:23]} Kg6 {[%emt 0:00:16]} 55. Kb4 {[%emt 0:00:26]} Kxh6 {[%emt 0:00:22]} 56. a5 {[%emt 0:00:19]} e4 {[%emt 0:00:14]} 57. Kc3 {[%emt 0:00:29]} 1-0